Cogmind - Beta 11.1 @@@ ROGUE MODE // 2022.09.18 @ 14:55:55 Player: Sportsnda Result: Self-destructed Performance ------------- Evolutions (2) 1000 Regions Visited (7) 1400 Robots Destroyed (26) 130 Value Destroyed (341) 341 Prototype IDs (2) 40 Alien Tech Used (0) 0 Bonus (284) 284 TOTAL SCORE: 3195 Bonus ------- Follower Combat Kills 103 Entered Garrisons 200 Friendly Fire -19 Cogmind --------- Core Integrity 279/550 Matter 188/300 Energy 100/100 System Corruption 0% Temperature Cool (0) Movement Core (50) Location -8/Garrison Parts ------- > --- POWER (1) -------- (None) > --- PROPULSION (2) --- Flight Unit > --- UTILITY (6) ------ (None) > --- WEAPON (2) ------- (None) > --- INVENTORY (5) ---- Experimental Sensor Array Seismic Detector Lightning Gun Peak State ------------ > --- POWER ------------ Light Ion Engine > --- PROPULSION ------- Compact Wheel Armored Wheel > --- UTILITY ---------- Small Storage Unit Improved Terrain Scanner Bomb Drone Bay > --- WEAPON ----------- Rocket Launcher Mining Laser > --- INVENTORY -------- Ion Engine Heavy Ion Engine Wheel Flight Unit Experimental Sensor Array Seismic Detector Lightning Gun Arc Projector [Rating: 27] Favorites ----------- Power Light Ion Engine Engine Light Ion Engine Propulsion Compact Wheel Wheel Compact Wheel Flight Unit Flight Unit Utility Small Storage Unit Device Improved Terrain Scanner Storage Small Storage Unit Weapon Rocket Launcher Energy Gun Small Laser Ballistic Gun Assault Rifle Launcher Rocket Launcher Special Weapon Mining Laser Build | -11 -10 -10 -9 -9 -8 -8 -8 ------- Run | Scr Mat Min Mat Min Mat Sto Gar Slots Evolved 4 | . . . 2 . 2 . . Power . | . . . . . . . . Propulsion . | . . . . . . . . Utility 4 | . . . 2 . 2 . . Weapon . | . . . . . . . . Parts Attached 25 | 7 . 1 6 3 . . 8 Power 3 | 1 . 1 . . . . 1 Engine 3 | 1 . 1 . . . . 1 Core . | . . . . . . . . Reactor . | . . . . . . . . Propulsion 9 | 2 . . 2 1 . . 4 Treads . | . . . . . . . . Leg . | . . . . . . . . Wheel 7 | 2 . . 2 1 . . 2 Hover . | . . . . . . . . Flight 2 | . . . . . . . 2 Utility 6 | 2 . . 2 2 . . . Device 5 | 1 . . 2 2 . . . Storage 1 | 1 . . . . . . . Processor . | . . . . . . . . Hackware . | . . . . . . . . Protection . | . . . . . . . . Artifact . | . . . . . . . . Weapon 7 | 2 . . 2 . . . 3 Energy Gun 4 | 1 . . . . . . 3 Energy Cannon . | . . . . . . . . Ballistic Gun 1 | 1 . . . . . . . Ballistic Cannon . | . . . . . . . . Launcher 1 | . . . 1 . . . . Special Weapon 1 | . . . 1 . . . . Impact Weapon . | . . . . . . . . Slashing Weapon . | . . . . . . . . Piercing Weapon . | . . . . . . . . Special Melee Weapon . | . . . . . . . . Unidentified Prototypes . | . . . . . . . . Parts Lost 13 | . . . 2 . . . 11 Power 2 | . . . . . . . 2 Propulsion 6 | . . . 2 . . . 4 Utility 2 | . . . . . . . 2 Weapon 3 | . . . . . . . 3 Highest Loss Streak 10 | . . . 2 . . . 10 To Critical Strikes . | . . . . . . . . Average Slot Usage (%) 83 | . 100 100 83 88 72 72 55 Engine 10 | . 14 14 11 11 9 9 7 Wheel 21 | . 28 28 19 22 18 18 15 Device 18 | . 14 14 19 22 18 18 11 Storage 10 | . 14 14 11 11 9 9 7 Energy Gun 3 | . 14 14 5 . . . 3 Ballistic Gun 3 | . 14 14 8 . . . . Launcher 7 | . . . 5 11 9 9 6 Special Weapon 6 | . . . 2 11 9 9 . Naked Turns . | . . . . . . . . Heaviest Build 23 | 14 14 14 23 22 22 22 22 Greatest Support 28 | 26 26 26 26 28 28 28 28 Greatest Overweight (x) . | . . . . . . . . Average Overweight (x) . | . . . . . . . . Largest Inventory Capacity 8 | 8 8 8 8 8 8 8 8 Average Capacity 7 | 7 8 8 8 8 8 8 7 Most Carried 8 | 6 6 8 8 8 8 8 8 Average Carried 6 | 3 6 7 7 6 8 8 6 Final Capacity 8 | 8 8 8 8 8 8 8 5 Final Carried 8 | 6 6 8 6 8 8 8 3 Class Distribution -------------------- 60% | Scavenger-Mutant 39% | Mutant Dominant Class ---------------- Mutant | -10/Materials Mutant | -10/Mines Mutant | -9/Materials Scavenger-Mutant | -9/Mines Scavenger-Mutant | -8/Materials Scavenger-Mutant | -8/Storage Mutant | -8/Garrison Resources | -11 -10 -10 -9 -9 -8 -8 -8 ----------- Run | Scr Mat Min Mat Min Mat Sto Gar Matter Collected 506 | 285 . 12 38 86 . . 85 Remotely . | . . . . . . . . Salvage Created 480 | 157 . 46 136 . . . 141 Parts 36 | 10 . 3 10 . . . 13 Haulers Intercepted 1 | . . . 1 . . . . Recyclers Shooed . | . . . . . . . . Parts Field Recycled . | . . . . . . . . Retrieved Matter . | . . . . . . . . Parts Self-Destructed . | . . . . . . . . Prevented . | . . . . . . . . Kills | -11 -10 -10 -9 -9 -8 -8 -8 ------- Run | Scr Mat Min Mat Min Mat Sto Gar Combat Hostiles Destroyed 19 | . . 3 6 . . . 10 Guns 9 | . . 3 1 . . . 5 AOE 10 | . . . 5 . . . 5 Classes Destroyed 7 | 2 . 1 4 . . . . Worker 2 | . . . 2 . . . . Tunneler 3 | 3 . . . . . . . Hauler 1 | . . . 1 . . . . Recycler 1 | 1 . . . . . . . Swarmer 15 | . . 3 3 . . . 9 Grunt 3 | . . . 2 . . . 1 Sentry 1 | . . . 1 . . . . Best Kill Streak 9 | 2 . 3 9 . . . 5 Combat Bots Only 6 | . . 3 6 . . . 5 Max Kills in Single Turn 3 | 1 . 2 3 . . . 3 Gunslinging 1 | . . 1 . . . . . Exploded 3 | . . . 2 . . . 3 Melee . | . . . . . . . . Uniques/NPCs Destroyed . | . . . . . . . . Combat | -11 -10 -10 -9 -9 -8 -8 -8 -------- Run | Scr Mat Min Mat Min Mat Sto Gar Damage Taken 1499 | . 91 81 171 208 13 62 873 Core 385 | . 14 28 15 57 . . 271 Absorbed by Shields 15 | . . . . . . . 15 Core Remaining (%) 88 | 100 . 83 . 82 . . . Volleys Fired 46 | 5 . 4 11 . 3 . 23 Largest 2 | 2 . 2 1 . 1 . 2 Hottest 110 | 60 . 60 33 . 100 . 110 Shots Fired 58 | 10 . 8 11 . 3 . 26 Gun 39 | 10 . 8 3 . . . 18 Cannon . | . . . . . . . . Launcher 16 | . . . 8 . . . 8 Special 3 | . . . . . 3 . . Kinetic 12 | 5 . 4 3 . . . . Thermal 12 | 5 . 4 . . 3 . . Explosive 16 | . . . 8 . . . 8 Electromagnetic 18 | . . . . . . . 18 Robot Hit Streak 6 | 6 . 4 5 . . . 6 Robot Miss Streak 3 | 1 . 2 1 . . . 3 Penetration Max . | . . . . . . . . Secondary Targets 3 | . . 2 . . . . 1 Max Gunslinging Chain 1 | . . 1 . . . . 1 Shots Hit Robots 33 | 7 . 5 6 . . . 15 Core Hits 41 | 5 . 3 14 . . . 19 Critical Kills . | . . . . . . . . Critical Parts Destroyed . | . . . . . . . . Critical Strikes . | . . . . . . . . Melee Attacks . | . . . . . . . . Impact . | . . . . . . . . Slashing . | . . . . . . . . Piercing . | . . . . . . . . Sneak Attacks . | . . . . . . . . Combat Hostiles . | . . . . . . . . Follow-up Attacks . | . . . . . . . . Damage Inflicted 1497 | 76 . 66 586 . . . 769 Guns 328 | 76 . 66 26 . . . 160 Cannons . | . . . . . . . . Explosions 1163 | . . . 560 . . . 603 Melee . | . . . . . . . . Ramming 6 | . . . . . . . 6 Kinetic 112 | 44 . 42 26 . . . . Thermal 56 | 32 . 24 . . . . . Explosive 1163 | . . . 560 . . . 603 Electromagnetic 160 | . . . . . . . 160 Impact . | . . . . . . . . Slashing . | . . . . . . . . Piercing . | . . . . . . . . Highest Corruption 1 | . . . . 1 . . . Average Corruption 1 | . . . . 1 . . . Corruption Purged . | . . . . . . . . Corruption Blocked . | . . . . . . . . Effects 9 | . . . . 9 . . . Message Errors 2 | . . . . 2 . . . Matter Fused 4 | . . . . 4 . . . Heat Flow Errors 1 | . . . . 1 . . . Energy Discharges 1 | . . . . 1 . . . Data Loss (minor) 1 | . . . . 1 . . . Overload Shots . | . . . . . . . . Overflow Damage 11 | . . . 7 . . . 4 Projectiles . | . . . . . . . . Explosions 11 | . . . 7 . . . 4 Melee . | . . . . . . . . Knockbacks . | . . . . . . . . Impact . | . . . . . . . . Kinetic . | . . . . . . . . Secondary . | . . . . . . . . Self-Inflicted Damage 66 | . . . 40 . . . 26 Shots 2 | . . . 1 . . . 1 Rammed 3 | . . . . . . . 3 Targets Rammed 3 | . . . . . . . 3 Kicked . | . . . . . . . . Crushed . | . . . . . . . . Highest Temperature 136 | 20 . . 2 136 . . 90 Average Temperature 31 | 20 . . 2 78 . . 24 Received Heat Transfer 192 | . 54 . 39 . . . 99 Siege Activations . | . . . . . . . . Robots Corrupted . | . . . . . . . . Combat Hostiles . | . . . . . . . . Parts Fried 2 | . . . . . . . 2 Impact Corruptions . | . . . . . . . . Robots Melted . | . . . . . . . . Combat Hostiles . | . . . . . . . . Parts Melted 1 | . . 1 . . . . . Heat Transferred 125 | 75 . 50 . . . . . Parts Sabotaged . | . . . . . . . . Parts Stolen . | . . . . . . . . Parts Stripped . | . . . . . . . . Power Chain Reactions . | . . . . . . . . Missiles Intercepted . | . . . . . . . . Alert | -11 -10 -10 -9 -9 -8 -8 -8 ------- Run | Scr Mat Min Mat Min Mat Sto Gar Peak Influence 321 | 20 36 83 321 109 32 15 259 Initial 109 | . 13 13 31 109 . 13 . Average 61 | 8 23 42 143 54 11 9 110 Maximum Alert Level 1 | . . . 1 . . . 1 Low Security (%) 92 | 100 100 100 60 100 100 100 76 Level 1 7 | . . . 39 . . . 23 Level 2 . | . . . . . . . . Level 3 . | . . . . . . . . Level 4 . | . . . . . . . . Level 5 . | . . . . . . . . High Security . | . . . . . . . . Max Security . | . . . . . . . . Squads Dispatched 2 | . . . 1 1 . . . Investigation . | . . . . . . . . Extermination . | . . . . . . . . Reinforcement 1 | . . . 1 . . . . Assault 1 | . . . . 1 . . . Garrison . | . . . . . . . . Intercept . | . . . . . . . . Searches Triggered . | . . . . . . . . Construction Impeded . | . . . . . . . . Haulers Reinforced . | . . . . . . . . Active Scanning Responses . | . . . . . . . . Cargo Convoy Interrupts . | . . . . . . . . Stealth | -11 -10 -10 -9 -9 -8 -8 -8 --------- Run | Scr Mat Min Mat Min Mat Sto Gar Distress Signals . | . . . . . . . . Communications Jammed . | . . . . . . . . Distress Signals . | . . . . . . . . Times Spotted 46 | . 3 3 12 3 2 1 22 Peak Tracking Total 10 | . 3 3 4 3 2 1 10 Tactical Retreats 3 | . . . . . . . 3 Traps | -11 -10 -10 -9 -9 -8 -8 -8 ------- Run | Scr Mat Min Mat Min Mat Sto Gar Traps Triggered 1 | . . . . . . 1 . Indirectly . | . . . . . . . . Trap Hack Attempts . | . . . . . . . . Triggered . | . . . . . . . . Disarmed . | . . . . . . . . Reprogrammed . | . . . . . . . . Reused . | . . . . . . . . Traps Extracted . | . . . . . . . . Installed . | . . . . . . . . Triggered . | . . . . . . . . Machines | -11 -10 -10 -9 -9 -8 -8 -8 ---------- Run | Scr Mat Min Mat Min Mat Sto Gar Machines Disabled . | . . . . . . . . Max in Single Turn . | . . . . . . . . Machines Sabotaged . | . . . . . . . . Garrisons Compromised . | . . . . . . . . Overloaded Fab Kills . | . . . . . . . . Hacking | -11 -10 -10 -9 -9 -8 -8 -8 --------- Run | Scr Mat Min Mat Min Mat Sto Gar Machines Accessed 8 | . 2 1 2 1 . 2 . Terminals 4 | . 2 . 1 . . 1 . Fabricators . | . . . . . . . . Repair Stations . | . . . . . . . . Recycling Units . | . . . . . . . . Scanalyzers 1 | . . . 1 . . . . Garrison Access 1 | . . . . . . 1 . Total Hacks 17 | . 2 1 11 1 . 2 . Successful 14 | . 1 1 9 1 . 2 . Failed 3 | . 1 . 2 . . . . Catastrophic . | . . . . . . . . Database Lockouts . | . . . . . . . . Manual 5 | . 3 . 1 . . 1 . Terminals 5 | . 2 . 2 . . 1 . Fabricators . | . . . . . . . . Repair Stations . | . . . . . . . . Recycling Units . | . . . . . . . . Scanalyzers 9 | . . . 9 . . . . Garrison Access 1 | . . . . . . 1 . Terminal Hacks 4 | . 1 1 . 1 . 1 . Open Door 3 | . . 1 . 1 . 1 . Branch Access Points 1 | . 1 . . . . . . Fabricator Hacks . | . . . . . . . . Repair Station Hacks . | . . . . . . . . Recycling Unit Hacks . | . . . . . . . . Scanalyzer 9 | . . . 9 . . . . Insert Component 5 | . . . 5 . . . . Analyze 4 | . . . 4 . . . . Garrison Access Hacks 1 | . . . . . . 1 . Unlock Access 1 | . . . . . . 1 . Unauthorized Hacks . | . . . . . . . . Terminals . | . . . . . . . . Fabricators . | . . . . . . . . Repair Stations . | . . . . . . . . Recycling Units . | . . . . . . . . Scanalyzers . | . . . . . . . . Garrison Access . | . . . . . . . . Data Cores Recovered . | . . . . . . . . Used . | . . . . . . . . Hacking Detections 5 | . 2 . 3 . . . . Full Trace Events . | . . . . . . . . Feedback Events . | . . . . . . . . Feedback Blocked . | . . . . . . . . Robot Schematics Acquired . | . . . . . . . . Robots Built . | . . . . . . . . Authchips . | . . . . . . . . Time . | . . . . . . . . Total Robot Build Rating . | . . . . . . . . Part Schematics Acquired 3 | . . . 3 . . . . Parts Built . | . . . . . . . . Authchips . | . . . . . . . . Time . | . . . . . . . . Total Part Build Rating . | . . . . . . . . Parts Repaired . | . . . . . . . . Time . | . . . . . . . . Parts Recycled . | . . . . . . . . Recycled Matter . | . . . . . . . . Retrieved Matter . | . . . . . . . . Retrieved Components . | . . . . . . . . Parts Scanalyzed 3 | . . . 3 . . . . Part Schematics Acquired 3 | . . . 3 . . . . Parts Damaged . | . . . . . . . . Bothacking | -11 -10 -10 -9 -9 -8 -8 -8 ------------ Run | Scr Mat Min Mat Min Mat Sto Gar Used RIF Installer . | . . . . . . . . Robots Hacked . | . . . . . . . . Non-combat . | . . . . . . . . Combat . | . . . . . . . . Robot Hacks Applied . | . . . . . . . . Relay Couplers Released . | . . . . . . . . Fabnet Peak Effective % . | . . . . . . . . Robots Rewired . | . . . . . . . . Allies Hacked . | . . . . . . . . Hacks Repelled . | . . . . . . . . Allies | -11 -10 -10 -9 -9 -8 -8 -8 -------- Run | Scr Mat Min Mat Min Mat Sto Gar Total Allies 1 | . . . . 1 . . . Largest Group 1 | . . . . 1 1 1 1 Highest-Rated Group 31 | . . . . 31 31 31 31 Highest-Rated Ally 31 | . . . . 31 31 31 31 Total Orders . | . . . . . . . . Ally Attacks 18 | . . . 6 3 . 3 6 Total Damage 82 | . . . . . . . 82 Kills 3 | . . . . . . . 3 Allies Corrupted . | . . . . . . . . Allies Melted . | . . . . . . . . Intel | -11 -10 -10 -9 -9 -8 -8 -8 ------- Run | Scr Mat Min Mat Min Mat Sto Gar Robot Analysis Total . | . . . . . . . . Derelict Logs Recovered 3 | . . 1 . 2 . . . Drone Launches 22 | . . . 16 . 6 . . Drone Recoveries 7 | . . . . 6 . . 1 Exploration | -11 -10 -10 -9 -9 -8 -8 -8 ------------- Run | Scr Mat Min Mat Min Mat Sto Gar Turns Passed 1750 | 77 96 231 164 800 67 73 242 Spaces Moved 1196 | 52 107 240 131 348 55 71 192 Core 11 | 11 . . . . . . . Treads . | . . . . . . . . Legs . | . . . . . . . . Wheels 1163 | 41 107 240 131 348 55 71 170 Hover . | . . . . . . . . Flight 22 | . . . . . . . 22 Fastest Speed 37 | 50 90 90 90 90 95 95 37 Average Speed 90 | 81 90 90 90 93 95 95 88 Slowest Speed 95 | 90 90 90 90 95 95 95 95 Overloaded Moves . | . . . . . . . . Propulsion Burnouts . | . . . . . . . . Robots Hopped . | . . . . . . . . Cave-ins Triggered . | . . . . . . . . Exploration Rate (%) 35 | 4 19 64 25 85 10 31 48 Regions Visited 7 Branch Regions 3 Pre-discovered Areas 1 | . . 1 . . . . . Known Exits Taken 3 | . 1 . . . 1 1 . Unknown Exits Taken 4 | 1 . 1 1 1 . . . Scrap Searched 4 | . . 2 . 2 . . . Spaces Dug 3 | . . . . . 3 . . Terrain Destroyed 84 | . . . 62 . 3 . 19 Melee . | . . . . . . . . Projectile 3 | . . . . . 3 . . AOE 81 | . . . 62 . . . 19 Terrain Rammed . | . . . . . . . . Walls Destroyed . | . . . . . . . . Machines Disabled . | . . . . . . . . Actions | -11 -10 -10 -9 -9 -8 -8 -8 --------- Run | Scr Mat Min Mat Min Mat Sto Gar Total 1793 | 76 106 247 165 824 60 76 239 Wait 497 | . . 1 13 465 3 5 10 Move 1190 | 51 106 239 130 347 54 71 192 Hop . | . . . . . . . . Pick Up 22 | 13 . 1 3 5 . . . Fast Attach . | . . . . . . . . Attach 19 | 7 . . 4 1 . . 7 Detach 4 | . . . 1 1 . . 2 Swap 6 | . . 1 2 2 . . 1 Drop 6 | . . 1 1 3 . . 1 Fire 46 | 5 . 4 11 . 3 . 23 Melee . | . . . . . . . . Ram 3 | . . . . . . . 3 Kick . | . . . . . . . . Crush . | . . . . . . . . Escape Stasis . | . . . . . . . . Rewire . | . . . . . . . . Trap . | . . . . . . . . Miscellaneous . | . . . . . . . . Route ------- -11/Scrapyard -10/Materials -10/Mines (discovered 2 exits: *Mat x2) -9/Materials -9/Mines -8/Materials -8/Storage -8/Garrison History --------- Turn | Location | Event 2 | -11/Scrapyard | Met Revision 17 45 | -11/Scrapyard | Discovered new exit (range 16) 78 | -11/Scrapyard | Entered Materials 96 | -10/Materials | Identified exit to Mines 174 | -10/Materials | Entered Mines 176 | -10/Mines | Found the Drone Emporium 181 | -10/Mines | Found Prototype Device 203 | -10/Mines | Learned location of Storage (-8) 291 | -10/Mines | Discovered new exit (range 9) 307 | -10/Mines | Build established: Mutant 331 | -10/Mines | Discovered new exit (range 13) 405 | -10/Mines | Entered Materials 405 | -9/Materials | Evolved 2 slots: Utility x2 429 | -9/Materials | Identified Bomb Drone Bay 529 | -9/Materials | Discovered new exit (range 20) 569 | -9/Materials | Entered Mines 569 | -9/Mines | Accompanied by 10 allies 606 | -9/Mines | Met a Derelict who couldn't figure out how to use a Trap Extractor 824 | -9/Mines | Build established: Scavenger-Mutant 1076 | -9/Mines | Found a damaged Exp. Sensor Array with a note attached 1078 | -9/Mines | Found Prototype Device 1096 | -9/Mines | Learned Materials emergency access door positions 1144 | -9/Mines | Met a Derelict testing a Signal Generator 1348 | -9/Mines | Discovered new exit (range 7) 1369 | -9/Mines | Entered Materials 1369 | -8/Materials | Accompanied by 1 ally 1369 | -8/Materials | Evolved 2 slots: Utility x2 1370 | -8/Materials | Identified exit to Storage 1436 | -8/Materials | Entered Storage 1436 | -8/Storage | Accompanied by 7 allies 1506 | -8/Storage | Identified exit to Garrison 1509 | -8/Storage | Entered Garrison 1509 | -8/Garrison | Accompanied by 4 allies 1626 | -8/Garrison | Triggered checkpoint 1710 | -8/Garrison | Triggered checkpoint 1751 | -8/Garrison | Self-destructed Last Messages --------------- 01697_ Arm. Wheel destroyed. 01698_ Imp. Terrain Scanner destroyed. 01699_ Slammed into S-10 Pest. 01701_ Destabilizing: Core damaged (-27). 01712_ S-10 Pest destroyed. 01716_ Com. Wheel destroyed. 01717_ S-10 Pest IFF system glitched. 01718_ Lgt. Ion Engine fried. 01718_ Flight Unit fried. 01718_ S-10 Pest destroyed. 01718_ Switching to secondary target: S-10 Pest. 01719_ S-10 Pest misfires. 01721_ Dropped Sml. Storage Unit. 01725_ Arc Projector destroyed. 01726_ Acquired 20 matter. 01733_ S-10 Pest destroyed. 01745_ Ion Engine destroyed. 01746_ Flight Unit destroyed. 01748_ Extracted 85 energy. 01749_ Wheel destroyed. Map ----- +----------------------------------------------------+ | | | | | | | | | | | ???????????????????????????????????????????? | | ???????????????????????????????????????????? | | ???????????????????????????????????????????? | | ???????????????????????????????????????????? | | ???????????????????????????????????????????? | | ???????????????????????????????????????????? | | ???????????????????????????????????????????? | | ???????????????????????????????????????????? | | ???????????????????????????????????????????? | | ???????????????????????????????????????????? | | ???????????????????????????????????????????? | | ???????????????????????????????????????????? | | ???????????????????????????????????????????? | | ???????????????????????????????????????????? | | ???????????????????????????????????????????? | | ????????????????????????#####??????????????? | | ????????????????????????#"""#??????????????? | | ????????????????#####???# "#??????????????? | | ????????????????#!!!##### "#??????????????? | | ????????????????#! ss / "#??????????????? | | ????????????????#!!@#####[%"#??????????????? | | ????????????????#####???#=%"##########?????? | | ????????????????????????# [ *!#?????? | | ????????????????????????####### ##%#?????? | | ??????????????????????????????# ##[#?????? | | ??????????????????????????????###### #?????? | | ???????????????????????????????????# #?????? | | ???????????????????????????????????# #?????? | | ??????????????????## ############### ####### | | ????????????????? | | ????????????????? | | ????????????????? | | ????????????????????############+### ###### | | ???????????????????????????????# #?# #?????? | | ???????????????????????????????# #?# #?????? | | ???????????????????????????????# ### #?????? | | ???????????????????????????????# # ????? | | ???????????????????????????????# #####????? | | ???????????????????????????????# #????????? | | ???????????????????????????????# #????????? | | ???????????????????????????????# #????????# | | ?????????????????????????????###[#????????# | | ?????????????????????????????# * #????????# | | ?????????????????????????????###=########## | | ???????????????????????????????# + | +----------------------------------------------------+ Best States ------------- Heat Dissipation 31 Energy Generation 10 Energy Capacity 250 Matter Stores 300 Matter Capacity 300 Sight Range 16 Terrain Scan Range 16 Terrain Scan Density 10 Evasion (%) 62 Item Schematics ----------------- Com. Wheel | -9/Materials | Scanalyzed Hvy. Ion Engine | -9/Materials | Scanalyzed Rocket Launcher | -9/Materials | Scanalyzed Robot Schematics ------------------ None Fabricated ------------ Nothing Alien Tech Used ----------------- None Achievements -------------- Release The Drones! Safety First Challenges ------------ None Game ------ Seed LightningTerrainBoosters Manual? 0 Play Time 00:40:44 Cumulative 16.9 hours Start 2022.09.18 @ 14:11:58 End 2022.09.18 @ 14:55:55 Sessions 1 Manual Loads 0 Difficulty Rogue Special Mode None Game No. 24 Rogue 20 Adventurer 4 Explorer 0 Win Type - Total 0 Types 0/0/0/0/0/0/0/0/0 Lore% 21 Gallery% 25 Achievement% 16 Wizard Run 0 Options --------- ASCII 0 Keyboard 0 Movement Mouse Keybinds 0 Fullscreen 0 Font 32/SmallcapsGlow Map View 112x70 Tactical HUD 1 Map Filters NONE Filters NONE Steam 1 RUN: 66ebad07-0dc2-4de8-9a87-5302966a14b8